[Event "Bruges Masters 2018"]
[Site "Brugge"]
[Date "2018.08.16"]
[Round "3"]
[White "Turner, Matthew J"]
[Black "Gonzales, Jayson"]
[Result "1-0"]
[ECO "D00"]
[WhiteElo "2533"]
[BlackElo "2383"]
[Annotator "ChessBase"]
[PlyCount "135"]
[EventDate "2018.08.12"]
[EventType "swiss"]
[EventCountry "BEL"]
[SourceTitle "playchess.com"]
[Source "ChessBase"]
[SourceQuality "1"]
[TimeControl "5400+30"]

1. d4 {[%emt 0:00:00]} d5 {[%emt 0:00:37]} 2. Bg5 {[%emt 0:02:13]} Nc6 {[%emt 0:01:37]} 3. e3 {[%emt 0:00:57]} f6 {[%emt 0:00:14]} 4. Bh4 {[%emt 0:00:20]} e5 {[%emt 0:00:39]} 5. Bb5 {[%emt 0:04:18]} exd4 {[%emt 0:06:20]} 6. exd4 {[%emt 0:02:30]} Bd6 {[%emt 0:08:29]} 7. Qh5+ {[%emt 0:05:53]} Kf8 {[%emt 0:02:34]} 8. c3 {[%emt 0:04:54]} Nge7 {[%emt 0:00:22]} 9. Ne2 {[%emt 0:04:00]} Bf5 {[%emt 0:04:27]} 10. Bg3 {[%emt 0:06:40]} Qd7 {[%emt 0:02:10]} 11. Bxd6 {[%emt 0:00:46]} Qxd6 {[%emt 0:00:16]} 12. O-O {[%emt 0:04:07]} Bg6 {[%emt 0:04:46]} 13. Qf3 {[%emt 0:01:35]} Nd8 {[%emt 0:03:45]} 14. Bd3 {[%emt 0:03:37]} Ne6 {[%emt 0:00:39]} 15. h4 {[%emt 0:10:58]} Re8 {[%emt 0:06:31]} 16. Nd2 {[%emt 0:01:14]} c6 {[%emt 0:05:54]} 17. Rae1 {[%emt 0:05:18]} Kf7 {[%emt 0:07:05]} 18. g3 {[%emt 0:03:20]} Rhf8 {[%emt 0:13:10]} 19. Nc1 {[%emt 0:03:31]} Nc7 {[%emt 0:05:05]} 20. h5 {[%emt 0:01:02]} Bxd3 {[%emt 0:00:19]} 21. Nxd3 {[%emt 0:00:13]} Kg8 {[%emt 0:00:06]} 22. Qg4 {[%emt 0:05:16]} b6 {[%emt 0:03:34]} 23. Nf3 {[%emt 0:00:50]} Qd8 {[%emt 0:01:47]} 24. Nh4 {[%emt 0:08:45]} Qc8 {[%emt 0:00:56]} 25. Qf4 {[%emt 0:00:44]} Qd7 {[%emt 0:00:35]} 26. Re3 {[%emt 0:02:29]} Nb5 {[%emt 0:00:56]} 27. Rfe1 {[%emt 0:01:59]} Nd6 {[%emt 0:00:13]} 28. f3 {[%emt 0:00:45]} Nec8 {[%emt 0:03:34]} 29. g4 {[%emt 0:02:12]} Rxe3 {[%emt 0:02:46]} 30. Rxe3 {[%emt 0:00:06]} Nc4 {[%emt 0:02:36]} 31. Re2 {[%emt 0:00:38]} N8d6 {[%emt 0:01:08]} 32. Kf2 {[%emt 0:01:19]} Re8 {[%emt 0:02:42]} 33. Rxe8+ {[%emt 0:00:48]} Nxe8 {[%emt 0:00:03]} 34. Qb8 {[%emt 0:01:10]} Kf8 {[%emt 0:00:27]} 35. Nf5 {[%emt 0:00:47]} g6 {[%emt 0:03:07]} 36. hxg6 hxg6 {[%emt 0:00:01]} 37. Ne3 {[%emt 0:00:47]} Ncd6 {[%emt 0:00:23]} 38. Qa8 {[%emt 0:00:41]} a5 {[%emt 0:00:19]} 39. b4 {[%emt 0:01:41]} Qb7 {[%emt 0:00:33]} 40. Qxb7 Nxb7 {[%emt 0:00:01]} 41. b5 {[%emt 0:00:57]} cxb5 {[%emt 0:00:48]} 42. Nxd5 {[%emt 0:00:05]} Kf7 {[%emt 0:00:27]} 43. Nxb6 {[%emt 0:00:35]} Nc7 {[%emt 0:00:20]} 44. Nf4 {[%emt 0:01:08]} Nd6 {[%emt 0:00:30]} 45. Ke2 {[%emt 0:00:32]} g5 {[%emt 0:00:26]} 46. Nfd5 {[%emt 0:00:15]} Na6 {[%emt 0:00:06]} 47. Ne3 {[%emt 0:01:27]} Ke6 {[%emt 0:00:32]} 48. Kd3 {[%emt 0:00:14]} Nc7 {[%emt 0:00:47]} 49. a4 {[%emt 0:00:53]} f5 {[%emt 0:02:33]} 50. gxf5+ {[%emt 0:01:26]} Nxf5 {[%emt 0:00:02]} 51. d5+ {[%emt 0:00:26]} Ke5 {[%emt 0:00:38]} 52. Nxf5 {[%emt 0:00:09]} Kxf5 {[%emt 0:00:35]} 53. d6 {[%emt 0:00:05]} Ne6 {[%emt 0:00:31]} 54. axb5 {[%emt 0:00:10]} Kf4 {[%emt 0:00:14]} 55. Ke2 {[%emt 0:01:20]} Ke5 {[%emt 0:00:18]} 56. Nc4+ {[%emt 0:00:24]} Kd5 {[%emt 0:00:02]} 57. Nxa5 {[%emt 0:01:55]} Kxd6 {[%emt 0:00:18]} 58. b6 {[%emt 0:00:55]} Nf4+ {[%emt 0:01:45]} 59. Ke3 {[%emt 0:00:25]} Nd5+ {[%emt 0:02:59]} 60. Kd4 {[%emt 0:00:06]} Nf6 {[%emt 0:00:05]} 61. c4 {[%emt 0:00:50]} Nd7 {[%emt 0:00:14]} 62. Nb3 {[%emt 0:00:44]} Kc6 {[%emt 0:00:22]} 63. c5 {[%emt 0:00:05]} Nf6 {[%emt 0:00:29]} 64. Na5+ {[%emt 0:01:34]} Kd7 {[%emt 0:00:22]} 65. c6+ {[%emt 0:00:31]} Kd6 {[%emt 0:00:10]} 66. c7 {[%emt 0:00:10]} Kd7 {[%emt 0:00:20]} 67. Nc4 {[%emt 0:00:37]} Ne8 {[%emt 0:00:48]} 68. Ke4 {[%emt 0:07:39]} 1-0

[Event "Bruges Masters 2018"]
[Site "Brugge"]
[Date "2018.08.16"]
[Round "3"]
[White "Wan, Yunguo"]
[Black "Townsend, M Paul"]
[Result "1-0"]
[ECO "B06"]
[WhiteElo "2501"]
[BlackElo "2246"]
[Annotator "RC"]
[PlyCount "31"]
[EventDate "2018.08.12"]
[EventType "swiss"]
[EventCountry "BEL"]
[SourceTitle "playchess.com"]
[Source "ChessBase"]
[SourceQuality "1"]
[TimeControl "5400+30"]

1. e4 {[%emt 0:16:27]} g6 {[%emt 0:00:00]} 2. d4 {[%emt 0:00:50]} Bg7 {[%emt 0:00:00]} 3. Nc3 {[%emt 0:00:27]} d6 {[%emt 0:00:00]} 4. Bg5 {[%emt 0:02:19]} a6 {[%emt 0:00:25]} 5. f4 {[%emt 0:00:07]} b5 {[%emt 0:01:03]} 6. Nf3 {[%emt 0:00:05]} Nd7 {[%emt 0:00:22]} 7. Bd3 {[%emt 0:00:44]} c5 {[%emt 0:01:58]} 8. e5 {[%emt 0:07:51]} f6 {[%emt 0:14:06]} 9. Be4 {[%emt 0:06:49]} Rb8 {[%emt 0:06:47]} 10. Bh4 {[%emt 0:07:20]} Bb7 {[%emt 0:20:12]} 11. Bxb7 {[%emt 0:17:39]} Rxb7 {[%emt 0:00:18]} 12. Qe2 {[%emt 0:00:17]} dxe5 {[%emt 0:26:42]} 13. dxe5 {[%emt 0:01:47]} Nh6 {[%emt 0:00:45]} 14. O-O-O {[%emt 0:00:38]} Qb8 {[%emt 0:08:08]} 15. Nd5 {[%emt 0:09:13]} Nf5 {[%emt 0:01:35]} 16. exf6 {[%emt 0:01:01]} 1-0

[Event "Bruges Masters 2018"]
[Site "Brugge"]
[Date "2018.08.16"]
[Round "3"]
[White "Shyaamnikhil P"]
[Black "Van Foreest, Lucas"]
[Result "1-0"]
[ECO "B20"]
[WhiteElo "2389"]
[BlackElo "2488"]
[Annotator "ChessBase"]
[PlyCount "85"]
[EventDate "2018.08.12"]
[EventType "swiss"]
[EventCountry "BEL"]
[SourceTitle "playchess.com"]
[Source "ChessBase"]
[SourceQuality "1"]
[TimeControl "5400+30"]

1. g3 {[%emt 0:04:12]} c5 {[%emt 0:01:46]} 2. Bg2 {[%emt 0:00:55]} Nc6 {[%emt 0:00:12]} 3. e4 {[%emt 0:04:44]} e6 {[%emt 0:01:54]} 4. Ne2 {[%emt 0:04:23]} g6 {[%emt 0:00:13]} 5. d4 {[%emt 0:02:15]} cxd4 {[%emt 0:00:51]} 6. Nxd4 {[%emt 0:00:06]} Nge7 {[%emt 0:12:49]} 7. Nb5 {[%emt 0:04:56]} d5 {[%emt 0:01:39]} 8. exd5 {[%emt 0:03:08]} Nxd5 {[%emt 0:02:48]} 9. c4 {[%emt 0:03:28]} Nb6 {[%emt 0:04:47]} 10. Qxd8+ {[%emt 0:05:17]} Kxd8 {[%emt 0:00:03]} 11. N1a3 {[%emt 0:06:03]} Bb4+ {[%emt 0:02:52]} 12. Ke2 {[%emt 0:00:49]} Ke7 {[%emt 0:01:52]} 13. Be3 {[%emt 0:01:47]} Bd7 {[%emt 0:03:40]} 14. b3 {[%emt 0:03:23]} Nc8 {[%emt 0:12:06]} 15. Nc2 {[%emt 0:01:37]} Ba5 {[%emt 0:00:05]} 16. Rad1 {[%emt 0:14:14]} Rd8 {[%emt 0:04:16]} 17. Bc5+ {[%emt 0:03:40]} Kf6 {[%emt 0:01:03]} 18. b4 {[%emt 0:06:13]} Bb6 {[%emt 0:01:36]} 19. Nc3 {[%emt 0:05:40]} Bxc5 {[%emt 0:03:39]} 20. Ne4+ {[%emt 0:00:06]} Ke7 {[%emt 0:00:53]} 21. Nxc5 {[%emt 0:00:07]} Rb8 {[%emt 0:02:15]} 22. Nxd7 {[%emt 0:03:44]} Rxd7 {[%emt 0:00:04]} 23. c5 {[%emt 0:00:15]} a6 {[%emt 0:01:37]} 24. a3 {[%emt 0:04:03]} N8a7 {[%emt 0:00:16]} 25. Rxd7+ Kxd7 {[%emt 0:00:02]} 26. Ke3 {[%emt 0:05:55]} a5 {[%emt 0:03:01]} 27. Rd1+ {[%emt 0:00:10]} Kc7 {[%emt 0:00:18]} 28. Bf1 {[%emt 0:00:26]} axb4 {[%emt 0:01:47]} 29. axb4 {[%emt 0:00:07]} Ne7 {[%emt 0:00:25]} 30. b5 {[%emt 0:00:44]} Nac8 {[%emt 0:07:57]} 31. Nb4 {[%emt 0:01:01]} Nd5+ {[%emt 0:01:35]} 32. Nxd5+ {[%emt 0:00:48]} exd5 {[%emt 0:00:01]} 33. Rxd5 {[%emt 0:01:29]} Ne7 {[%emt 0:01:24]} 34. Rd2 {[%emt 0:01:02]} b6 {[%emt 0:00:27]} 35. Bh3 {[%emt 0:01:42]} f5 {[%emt 0:00:16]} 36. c6 {[%emt 0:01:42]} Rd8 {[%emt 0:00:01]} 37. Rxd8 Kxd8 {[%emt 0:00:02]} 38. Kd4 {[%emt 0:00:42]} Nc8 {[%emt 0:00:01]} 39. Ke5 {[%emt 0:00:36]} Ke7 {[%emt 0:00:01]} 40. g4 {[%emt 0:00:14]} Nd6 {[%emt 0:01:44]} 41. gxf5 {[%emt 0:00:10]} gxf5 {[%emt 0:01:10]} 42. c7 {[%emt 0:00:18]} Nc4+ {[%emt 0:01:47]} 43. Kd5 {[%emt 0:00:09]} 1-0

[Event "Bruges Masters 2018"]
[Site "Brugge"]
[Date "2018.08.16"]
[Round "3"]
[White "Mehar, Chinna Reddy C H"]
[Black "Zeng, Chongsheng"]
[Result "1/2-1/2"]
[ECO "A45"]
[WhiteElo "2345"]
[BlackElo "2539"]
[Annotator "ChessBase"]
[PlyCount "80"]
[EventDate "2018.08.12"]
[EventType "swiss"]
[EventCountry "BEL"]
[SourceTitle "playchess.com"]
[Source "ChessBase"]
[SourceQuality "1"]
[TimeControl "5400+30"]

1. d4 {[%emt 0:17:10]} Nf6 {[%emt 0:00:16]} 2. Bf4 {[%emt 0:00:26]} g6 {[%emt 0:00:40]} 3. Nc3 {[%emt 0:00:23]} d5 {[%emt 0:02:33]} 4. e3 {[%emt 0:00:33]} Bg7 {[%emt 0:01:14]} 5. h4 {[%emt 0:00:40]} h6 {[%emt 0:01:33]} 6. Be2 {[%emt 0:00:54]} c5 {[%emt 0:02:00]} 7. Nb5 {[%emt 0:02:07]} Na6 {[%emt 0:00:19]} 8. Nf3 {[%emt 0:02:38]} O-O {[%emt 0:08:52]} 9. Ne5 {[%emt 0:07:05]} Bd7 {[%emt 0:04:17]} 10. a4 {[%emt 0:04:00]} Ne4 {[%emt 0:04:23]} 11. O-O {[%emt 0:06:29]} Bxb5 {[%emt 0:04:01]} 12. axb5 {[%emt 0:00:13]} Nc7 {[%emt 0:00:12]} 13. f3 {[%emt 0:05:02]} Nd6 {[%emt 0:03:26]} 14. dxc5 {[%emt 0:00:55]} Nf5 {[%emt 0:00:36]} 15. c6 {[%emt 0:11:02]} b6 {[%emt 0:06:45]} 16. e4 {[%emt 0:01:36]} Ne6 {[%emt 0:05:45]} 17. exf5 {[%emt 0:02:05]} Nxf4 {[%emt 0:00:03]} 18. Nd7 {[%emt 0:02:38]} gxf5 {[%emt 0:08:32]} 19. Ra4 {[%emt 0:01:35]} d4 {[%emt 0:02:47]} 20. Bc4 {[%emt 0:04:30]} Re8 {[%emt 0:06:45]} 21. g3 {[%emt 0:04:20]} Nh5 {[%emt 0:00:40]} 22. Kg2 {[%emt 0:00:15]} e6 {[%emt 0:02:12]} 23. f4 {[%emt 0:02:40]} Nf6 {[%emt 0:00:12]} 24. Nxf6+ {[%emt 0:00:05]} Bxf6 {[%emt 0:00:35]} 25. Kh3 {[%emt 0:01:20]} Qc7 {[%emt 0:05:57]} 26. Qf3 {[%emt 0:00:11]} Kh7 {[%emt 0:01:53]} 27. Bd3 {[%emt 0:00:46]} Kg7 {[%emt 0:01:57]} 28. Rg1 {[%emt 0:02:25]} Rg8 {[%emt 0:01:12]} 29. g4 {[%emt 0:03:17]} Kf8 {[%emt 0:03:21]} 30. Raa1 {[%emt 0:00:08]} fxg4+ {[%emt 0:01:20]} 31. Rxg4 {[%emt 0:00:05]} Ke7 {[%emt 0:00:31]} 32. Rag1 {[%emt 0:01:08]} Rxg4 {[%emt 0:00:28]} 33. Rxg4 {[%emt 0:00:14]} Rf8 {[%emt 0:04:41]} 34. b3 {[%emt 0:03:18]} Qd6 {[%emt 0:00:30]} 35. Qe4 {[%emt 0:01:05]} Qc5 {[%emt 0:02:19]} 36. f5 {[%emt 0:01:14]} Kd6 {[%emt 0:01:03]} 37. fxe6 {[%emt 0:01:33]} fxe6 {[%emt 0:00:08]} 38. Qf4+ {[%emt 0:00:11]} Qe5 {[%emt 0:00:47]} 39. Qxe5+ {[%emt 0:00:10]} Bxe5 {[%emt 0:02:04]} 40. Rg6 {[%emt 0:00:34]} Rf6 {[%emt 0:13:11]} 1/2-1/2

[Event "Bruges Masters 2018"]
[Site "Brugge"]
[Date "2018.08.16"]
[Round "3"]
[White "Rajesh, V A V"]
[Black "Dauw, Sterre"]
[Result "1-0"]
[ECO "A70"]
[WhiteElo "2325"]
[BlackElo "2192"]
[Annotator "NA"]
[PlyCount "59"]
[EventDate "2018.08.12"]
[EventType "swiss"]
[EventCountry "BEL"]
[SourceTitle "playchess.com"]
[Source "ChessBase"]
[SourceQuality "1"]
[TimeControl "5400+30"]

1. d4 {[%emt 0:03:47]} Nf6 {[%emt 0:03:27]} 2. c4 {[%emt 0:00:11]} c5 {[%emt 0:00:07]} 3. d5 {[%emt 0:00:06]} e6 {[%emt 0:00:06]} 4. Nc3 {[%emt 0:00:09]} exd5 {[%emt 0:00:07]} 5. cxd5 {[%emt 0:00:05]} d6 {[%emt 0:00:09]} 6. Nf3 {[%emt 0:00:20]} g6 {[%emt 0:00:08]} 7. Bf4 {[%emt 0:00:37]} Bg7 {[%emt 0:00:09]} 8. Qa4+ {[%emt 0:00:57]} Bd7 {[%emt 0:00:08]} 9. Qb3 {[%emt 0:00:22]} Qc7 {[%emt 0:00:06]} 10. e4 {[%emt 0:00:31]} O-O {[%emt 0:00:09]} 11. Be2 {[%emt 0:01:25]} Nh5 {[%emt 0:00:35]} 12. Be3 {[%emt 0:00:14]} Na6 {[%emt 0:00:06]} 13. Nd2 {[%emt 0:01:48]} Rab8 {[%emt 0:00:32]} 14. a4 {[%emt 0:09:15]} Nb4 {[%emt 0:00:36]} 15. Nc4 {[%emt 0:02:02]} f5 {[%emt 0:04:06]} 16. exf5 {[%emt 0:10:06]} Bxf5 {[%emt 0:00:59]} 17. Nb5 {[%emt 0:00:09]} Qe7 {[%emt 0:05:10]} 18. O-O {[%emt 0:10:08]} Bc2 {[%emt 0:06:38]} 19. Qa3 {[%emt 0:00:36]} Nf4 {[%emt 0:00:52]} 20. Bg4 {[%emt 0:09:19]} a6 {[%emt 0:09:28]} 21. Nbxd6 {[%emt 0:05:21]} b5 {[%emt 0:00:23]} 22. axb5 {[%emt 0:04:36]} axb5 {[%emt 0:00:06]} 23. Bxf4 {[%emt 0:05:35]} Rxf4 {[%emt 0:00:44]} 24. Be6+ {[%emt 0:00:20]} Kh8 {[%emt 0:00:31]} 25. Qg3 {[%emt 0:13:57]} Rbf8 {[%emt 0:01:39]} 26. Nc8 {[%emt 0:03:15]} Rxc8 {[%emt 0:11:15]} 27. Qxf4 {[%emt 0:00:22]} Rd8 {[%emt 0:04:52]} 28. Ne5 {[%emt 0:01:01]} Bxe5 {[%emt 0:02:37]} 29. Qxe5+ {[%emt 0:00:13]} Qg7 {[%emt 0:00:05]} 30. Qg5 {[%emt 0:00:20]} 1-0

[Event "Bruges Masters 2018"]
[Site "Brugge"]
[Date "2018.08.16"]
[Round "3"]
[White "Dardha, Daniel"]
[Black "Dgebuadze, Alexandre"]
[Result "1/2-1/2"]
[ECO "B31"]
[WhiteElo "2302"]
[BlackElo "2511"]
[Annotator "ChessBase"]
[PlyCount "84"]
[EventDate "2018.08.12"]
[EventType "swiss"]
[EventCountry "BEL"]
[SourceTitle "playchess.com"]
[Source "ChessBase"]
[SourceQuality "1"]
[TimeControl "5400+30"]

1. e4 {[%emt 0:00:00]} c5 {[%emt 0:00:00]} 2. Nf3 {[%emt 0:00:00]} Nc6 {[%emt 0:00:00]} 3. Bb5 {[%emt 0:00:00]} g6 {[%emt 0:00:00]} 4. Bxc6 {[%emt 0:00:00]} bxc6 {[%emt 0:00:00]} 5. O-O {[%emt 0:00:06]} Bg7 {[%emt 0:00:00]} 6. Re1 {[%emt 0:00:05]} Nh6 {[%emt 0:00:16]} 7. c3 {[%emt 0:00:09]} O-O {[%emt 0:00:34]} 8. d4 {[%emt 0:00:04]} cxd4 {[%emt 0:00:12]} 9. cxd4 {[%emt 0:00:05]} f6 {[%emt 0:03:14]} 10. Nc3 {[%emt 0:01:03]} Nf7 {[%emt 0:00:20]} 11. Bf4 {[%emt 0:01:09]} d6 {[%emt 0:00:27]} 12. h3 {[%emt 0:00:11]} Qa5 {[%emt 0:07:02]} 13. Rc1 {[%emt 0:03:39]} Rb8 {[%emt 0:03:24]} 14. b3 {[%emt 0:03:11]} Rb7 {[%emt 0:10:43]} 15. Na4 {[%emt 0:17:55]} Ng5 {[%emt 0:10:03]} 16. Nxg5 {[%emt 0:08:12]} fxg5 {[%emt 0:00:07]} 17. Bg3 {[%emt 0:02:42]} Rb4 {[%emt 0:02:33]} 18. e5 {[%emt 0:03:07]} Qd5 {[%emt 0:00:22]} 19. exd6 {[%emt 0:17:21]} exd6 {[%emt 0:00:29]} 20. Nc3 {[%emt 0:00:44]} Qf5 {[%emt 0:21:15]} 21. d5 {[%emt 0:07:39]} c5 {[%emt 0:05:34]} 22. Qc2 {[%emt 0:04:29]} Qxc2 {[%emt 0:05:28]} 23. Rxc2 {[%emt 0:00:03]} Bf5 {[%emt 0:00:44]} 24. Rcc1 {[%emt 0:00:10]} Rd8 {[%emt 0:05:26]} 25. Nd1 {[%emt 0:03:13]} a5 {[%emt 0:02:45]} 26. Ne3 {[%emt 0:04:46]} a4 {[%emt 0:01:03]} 27. Nc4 {[%emt 0:00:59]} axb3 {[%emt 0:01:51]} 28. axb3 {[%emt 0:00:07]} Rxb3 {[%emt 0:00:54]} 29. Nxd6 {[%emt 0:04:29]} Rd3 {[%emt 0:05:29]} 30. Ne8 {[%emt 0:14:43]} R3xd5 {[%emt 0:05:47]} 31. Nxg7 {[%emt 0:01:15]} Kxg7 {[%emt 0:00:09]} 32. Re7+ {[%emt 0:00:18]} Kf6 {[%emt 0:00:17]} 33. Rxh7 {[%emt 0:00:59]} Rd1+ {[%emt 0:00:05]} 34. Rxd1 {[%emt 0:00:04]} Rxd1+ {[%emt 0:00:05]} 35. Kh2 {[%emt 0:00:02]} Bd7 {[%emt 0:02:28]} 36. h4 {[%emt 0:01:17]} c4 {[%emt 0:03:09]} 37. hxg5+ {[%emt 0:00:42]} Ke6 {[%emt 0:03:09]} 38. Rg7 {[%emt 0:01:33]} c3 {[%emt 0:01:37]} 39. Rxg6+ {[%emt 0:00:29]} Kf5 {[%emt 0:00:08]} 40. Rf6+ {[%emt 0:00:06]} Kxg5 {[%emt 0:00:14]} 41. Rf3 {[%emt 0:00:03]} c2 {[%emt 0:00:36]} 42. Bf4+ {[%emt 0:03:51]} Kg4 {[%emt 0:03:01]} 1/2-1/2

[Event "Bruges Masters 2018"]
[Site "Brugge"]
[Date "2018.08.16"]
[Round "3"]
[White "Ratsma, Rosa"]
[Black "Lai, Hing Ting"]
[Result "0-1"]
[ECO "B11"]
[WhiteElo "2286"]
[BlackElo "2459"]
[Annotator "ChessBase"]
[PlyCount "84"]
[EventDate "2018.08.12"]
[EventType "swiss"]
[EventCountry "BEL"]
[SourceTitle "playchess.com"]
[Source "ChessBase"]
[SourceQuality "1"]
[TimeControl "5400+30"]

1. e4 {[%emt 0:00:00]} c6 {[%emt 0:00:00]} 2. Nc3 {[%emt 0:00:00]} d5 {[%emt 0:00:02]} 3. Nf3 {[%emt 0:00:00]} Nf6 {[%emt 0:00:16]} 4. e5 {[%emt 0:00:22]} Ne4 {[%emt 0:00:12]} 5. Ne2 {[%emt 0:00:24]} Qb6 {[%emt 0:00:07]} 6. d4 {[%emt 0:00:08]} e6 {[%emt 0:00:06]} 7. Ng3 {[%emt 0:00:28]} c5 {[%emt 0:00:18]} 8. c3 {[%emt 0:00:23]} Nc6 {[%emt 0:00:15]} 9. Bd3 {[%emt 0:00:18]} Nxg3 {[%emt 0:01:19]} 10. hxg3 {[%emt 0:00:12]} Bd7 {[%emt 0:00:13]} 11. Kf1 {[%emt 0:01:47]} cxd4 {[%emt 0:04:13]} 12. cxd4 {[%emt 0:00:21]} Nb4 {[%emt 0:04:48]} 13. Be2 {[%emt 0:00:52]} Rc8 {[%emt 0:06:31]} 14. Bd2 {[%emt 0:01:04]} Bb5 {[%emt 0:05:37]} 15. Bc3 {[%emt 0:05:33]} Be7 {[%emt 0:03:23]} 16. g4 {[%emt 0:04:36]} a5 {[%emt 0:12:53]} 17. a4 {[%emt 0:07:16]} Bc4 {[%emt 0:04:06]} 18. g3 {[%emt 0:17:14]} Qa6 {[%emt 0:05:03]} 19. Bxc4 {[%emt 0:06:46]} dxc4 {[%emt 0:01:58]} 20. Nd2 {[%emt 0:05:28]} Qc6 {[%emt 0:04:57]} 21. Qf3 {[%emt 0:02:17]} O-O {[%emt 0:10:30]} 22. Qxc6 {[%emt 0:08:36]} Rxc6 {[%emt 0:00:10]} 23. Ke2 {[%emt 0:01:14]} f5 {[%emt 0:10:13]} 24. gxf5 {[%emt 0:03:17]} Rxf5 {[%emt 0:03:01]} 25. f4 {[%emt 0:02:29]} Rf8 {[%emt 0:02:12]} 26. Raf1 {[%emt 0:05:33]} Nd5 {[%emt 0:01:26]} 27. Rf3 {[%emt 0:05:52]} Bb4 {[%emt 0:03:37]} 28. Rhf1 {[%emt 0:03:35]} h5 {[%emt 0:00:43]} 29. Kf2 {[%emt 0:04:40]} g5 {[%emt 0:06:13]} 30. Bxb4 {[%emt 0:01:44]} Nxb4 {[%emt 0:03:10]} 31. Kg2 {[%emt 0:01:43]} g4 {[%emt 0:00:56]} 32. Ra3 {[%emt 0:02:18]} Rd8 {[%emt 0:00:27]} 33. Ne4 {[%emt 0:00:53]} Rxd4 {[%emt 0:00:17]} 34. Nf6+ {[%emt 0:01:00]} Kf7 {[%emt 0:00:10]} 35. Rf2 {[%emt 0:02:32]} Nd3 {[%emt 0:01:03]} 36. Re2 {[%emt 0:00:18]} Kg6 {[%emt 0:02:51]} 37. Ne8 {[%emt 0:05:21]} Rb6 {[%emt 0:01:22]} 38. Nd6 {[%emt 0:00:39]} Rxb2 {[%emt 0:00:45]} 39. Rxb2 {[%emt 0:00:27]} Nxb2 {[%emt 0:00:02]} 40. Nxb7 {[%emt 0:00:44]} Rd3 {[%emt 0:01:06]} 41. Ra2 {[%emt 0:00:29]} c3 {[%emt 0:00:39]} 42. Nc5 {[%emt 0:00:32]} c2 {[%emt 0:00:56]} 0-1

[Event "Bruges Masters 2018"]
[Site "Brugge"]
[Date "2018.08.16"]
[Round "3"]
[White "Pel, Bonno"]
[Black "Geirnaert, Steven"]
[Result "1-0"]
[ECO "A00"]
[WhiteElo "2281"]
[BlackElo "2427"]
[Annotator "ChessBase"]
[PlyCount "118"]
[EventDate "2018.08.12"]
[EventType "swiss"]
[EventCountry "BEL"]
[SourceTitle "playchess.com"]
[Source "ChessBase"]
[SourceQuality "1"]
[TimeControl "5400+30"]

1. g3 {[%emt 0:01:24]} d5 {[%emt 0:03:45]} 2. Bg2 {[%emt 0:00:16]} e5 {[%emt 0:00:12]} 3. d3 {[%emt 0:00:13]} Nf6 {[%emt 0:00:15]} 4. Nf3 {[%emt 0:00:41]} Bd6 {[%emt 0:00:10]} 5. O-O {[%emt 0:00:23]} O-O {[%emt 0:00:06]} 6. Nc3 {[%emt 0:00:38]} Re8 {[%emt 0:00:22]} 7. Bg5 {[%emt 0:03:26]} c6 {[%emt 0:02:21]} 8. e4 {[%emt 0:01:40]} d4 {[%emt 0:02:47]} 9. Ne2 {[%emt 0:00:25]} h6 {[%emt 0:00:18]} 10. Bd2 {[%emt 0:00:25]} c5 {[%emt 0:00:23]} 11. Ne1 {[%emt 0:09:04]} Nc6 {[%emt 0:02:50]} 12. f4 {[%emt 0:05:51]} c4 {[%emt 0:04:29]} 13. Kh1 {[%emt 0:05:24]} cxd3 {[%emt 0:09:07]} 14. cxd3 {[%emt 0:00:49]} Bb4 {[%emt 0:01:35]} 15. Bxb4 {[%emt 0:03:28]} Nxb4 {[%emt 0:00:15]} 16. fxe5 {[%emt 0:00:29]} Ng4 {[%emt 0:12:20]} 17. Qb3 {[%emt 0:06:12]} Nc6 {[%emt 0:00:53]} 18. Qxf7+ {[%emt 0:01:43]} Kh7 {[%emt 0:00:25]} 19. Nf3 {[%emt 0:03:52]} Ne3 {[%emt 0:02:51]} 20. Nf4 {[%emt 0:22:02]} Nxf1 {[%emt 0:13:05]} 21. Rxf1 {[%emt 0:00:54]} Rf8 {[%emt 0:17:39]} 22. Qg6+ {[%emt 0:03:55]} Kh8 {[%emt 0:00:18]} 23. Qh5 {[%emt 0:05:22]} Qe8 {[%emt 0:01:00]} 24. Ng6+ {[%emt 0:08:57]} Kg8 {[%emt 0:00:06]} 25. g4 {[%emt 0:00:04]} Be6 {[%emt 0:04:09]} 26. Nxf8 {[%emt 0:05:12]} Qxh5 {[%emt 0:00:40]} 27. gxh5 {[%emt 0:00:05]} Rxf8 {[%emt 0:00:09]} 28. a3 {[%emt 0:02:51]} Bg4 {[%emt 0:00:13]} 29. h3 {[%emt 0:02:36]} Bxh5 {[%emt 0:04:26]} 30. e6 {[%emt 0:00:07]} Re8 {[%emt 0:02:04]} 31. Nh4 {[%emt 0:00:39]} Rxe6 {[%emt 0:00:40]} 32. Bf3 {[%emt 0:00:21]} Rf6 {[%emt 0:04:23]} 33. Kg2 {[%emt 0:00:03]} Bf7 {[%emt 0:00:24]} 34. Rc1 {[%emt 0:01:36]} Be6 {[%emt 0:00:47]} 35. Rc5 {[%emt 0:01:34]} g5 {[%emt 0:05:49]} 36. Nf5 {[%emt 0:01:01]} Bxf5 {[%emt 0:00:07]} 37. exf5 {[%emt 0:00:08]} Kf7 {[%emt 0:00:41]} 38. Bd5+ {[%emt 0:02:13]} Ke7 {[%emt 0:00:26]} 39. Be6 {[%emt 0:00:06]} Rf8 {[%emt 0:00:53]} 40. Kf3 {[%emt 0:01:10]} Kf6 {[%emt 0:00:45]} 41. Ke4 {[%emt 0:00:48]} h5 {[%emt 0:02:30]} 42. b4 {[%emt 0:00:05]} Re8 {[%emt 0:00:48]} 43. b5 {[%emt 0:01:07]} Nd8 {[%emt 0:00:16]} 44. Rc8 {[%emt 0:01:19]} b6 {[%emt 0:01:52]} 45. a4 {[%emt 0:00:53]} Nb7 {[%emt 0:01:54]} 46. Rc7 {[%emt 0:00:50]} Nc5+ {[%emt 0:00:08]} 47. Kd5 {[%emt 0:00:22]} Nxe6 {[%emt 0:01:23]} 48. fxe6 {[%emt 0:00:12]} Re7 {[%emt 0:00:03]} 49. Rd7 {[%emt 0:00:50]} h4 {[%emt 0:00:48]} 50. Rd8 {[%emt 0:00:39]} Rxe6 {[%emt 0:00:15]} 51. Rf8+ {[%emt 0:00:23]} Ke7 {[%emt 0:00:18]} 52. Rg8 {[%emt 0:00:10]} Re3 {[%emt 0:00:14]} 53. Kxd4 {[%emt 0:00:26]} Rxh3 {[%emt 0:00:17]} 54. Rxg5 {[%emt 0:00:08]} Rg3 {[%emt 0:00:12]} 55. Re5+ {[%emt 0:00:38]} Kf6 {[%emt 0:00:15]} 56. Rh5 {[%emt 0:00:41]} Rg4+ {[%emt 0:00:08]} 57. Kd5 {[%emt 0:00:05]} Rg5+ {[%emt 0:00:22]} 58. Rxg5 {[%emt 0:00:49]} Kxg5 {[%emt 0:00:05]} 59. Ke4 {[%emt 0:00:14]} Kg4 {[%emt 0:00:11]} 1-0